Workbook

Sheet Home - Regional Forms
E2: SCW REGIONAL STOCK ORDER FORMS
C5: Use this page as a quick and easy way to locate the stock product categories you need. Just click on the buttons below and it will take you to that product category (or use the tabs located at the bottom of the screen to go to that product category). Next, fill in the quantity of stock products needed and let the program do the rest. To print individual sheets that you have completed (or blank forms) you can use this page or choose the print option from the file menu on the active worksheet. Don't forget to fill in the header information on the Cover Page (the information will be automatically filled-in on the individual stock forms)
B13: FRAME ORDER FORMS | M13: DOOR ORDER FORMS | Z13: PRINT FORMS
J33: FAX TO : 8 8 8 - 4 8 5 - 4 7 4 7 | Z33: PRINT INSTRUCTIONS: • click / fill form to populate • CTRL+select forms above • click Print Preview icon

Sheet Cat.658 Rev. 0223-cover
A1: SCW STOCK ORDER COVER PAGE | N1: FAX FORM
A4: TO: | B4: STEELCRAFT | H4: DATE: | N4: ACCOUNT #:
B5: ORDER SERVICE DEPARTMENT | H5: FROM: | N5: PO NUMBER:
B6: 9017 BLUE ASH ROAD | H6: PHONE: | N6: DISCOUNT:
B7: CINCINNATI, OHIO 45242 | H7: FAX: | N7: SHIPPING INSTRUCTIONS:
N8: (place an "X" in box)
A9: FAX: | B9: (888) 485 - 4747 | H9: PAGE: | J9: OF | N9: FALSE | O9: LTL (best way)
A10: Email: | B10: SteelcraftOrderEntryChino@allegion.com | N10: FALSE | O10: Pool Truck
N11: FALSE | O11: Other ==>
A15: SOLD TO: | G15: SHIP TO ADDRESS: | O15: ORDER SUMMARY
T16: Wgt_658_1_534, | U16: Wgt_658_1_614, | V16: Wgt_658_1_734, | W16: Wgt_658_1_814, | X16: Wgt_658_24, | Y16: Wgt_658_4, | Z16: Wgt_658_4_814, | AA16: Wgt_658_7_68_, | AB16: Wgt_658_7_70_, | AC16: Wgt_658_7_80_, | AD16: Wgt_658_8_, | AE16: Wgt_658_9_,
M18: TOTAL WEIGHT (lbs) | P18: =SUM(Wgt_658_1_534,Wgt_658_1_614,Wgt_658_1_734,Wgt_658_1_814,wgt_658_24,Wgt_658_4,Wgt_658_4_814,Wgt_658_7_68_,Wgt_658_7_70_,Wgt_658_7_80_,Wgt_658_9_) -> 792 | T18: =Wgt_658_1_534 -> 456 | U18: =Wgt_658_1_614 -> 336 | V18: =Wgt_658_1_734 -> 0 | W18: =Wgt_658_1_814 -> 0 | X18: =wgt_658_24 -> 0 | Y18: =Wgt_658_4 -> 0 | Z18: =Wgt_658_4_814 -> 0 | AA18: =Wgt_658_7_68_ -> 0 | AB18: =Wgt_658_7_70_ -> 0 | AC18: =Wgt_658_7_80_ -> 0 | AD18: =Wgt_658_8_ ->  | AE18: =Wgt_658_9_ -> 0 | AF18: =SUM(T18:AE18) -> 
M19: TOTAL QUANTITY | P19: =SUM(Qty_658_1_534,Qty_658_1_614,Qty_658_1_734,Qty_658_1_814,Qty_658_24,Qty_658_4,Qty_658_4_814,Qty_658_7_68_,Qty_658_7_70_,Qty_658_7_80_,Qty_658_9_) -> 50 | T19: =Qty_658_1_534 -> 32 | U19: =Qty_658_1_614 -> 18 | V19: =Qty_658_1_734 -> 0 | W19: =Qty_658_1_814 -> 0 | X19: =Qty_658_24 -> 0 | Y19: =Qty_658_4 -> 0 | Z19: =Qty_658_4_814 -> 0 | AA19: =Qty_658_7_68_ -> 0 | AB19: =Qty_658_7_70_ -> 0 | AC19: =Qty_658_7_80_ -> 0 | AD19: =Qty_658_8_ ->  | AE19: =Qty_658_9_ -> 0 | AF19: =SUM(T19:AE19) -> 
M20: TOTAL LIST PRICE | P20: =SUM('Cat.658-1 Rev. 0223'!Q38:R38+'Cat.658-2 Rev. 0223'!Q34:R34+'Cat.658-3 Rev. 0223'!Q36:R36+'Cat.658-4 Rev. 0223'!Q34:R34+'Cat.658-5 Rev. 0223'!S33:T33+'Cat.658-10 Rev. 0223'!P37:Q37+'Cat.658-11 Rev. 0223'!P37:Q37+'Cat.658-20-Rev. 0223'!P37:Q37+'Cat.658-21-Rev. 0223'!P43:Q43+'Cat.658-22-Rev. 0420'!P38:Q38+'Cat.658-23-Rev. 0223'!P43:Q43+'Cat.658-30-Rev. 0223'!P32:Q32) -> 6811 | T20: =List_658_1_534 -> 3975 | U20: =List_658_1_614 -> 2836 | V20: =List_658_1_734 -> 0 | W20: =List_658_1_814 -> 0 | X20: =list_658_24 -> 0 | Y20: =List_658_4 -> 0 | Z20: =List_658_4_814 -> 0 | AA20: =LIst_658_7_68_ -> 0 | AB20: =List_658_7_70_ -> 0 | AC20: =List_658_7_80_ -> 0 | AD20: =List_658_8_ ->  | AE20: =List_658_9_ -> 0 | AF20: =SUM(T20:AE20) -> 
M21: DISTRIBUTOR DISCOUNT | P21: =$O$6 -> 0
G22: ATTN:
A24: Special Instructions: | G24: JOB NAME: | O24: GRAND TOTAL NET | P24: =(1-P21)*P20 -> 6811
B30: x | C30: 1-DAY STOCK SCHEDULE | M30: 5-DAY MODIFIED STOCK*
A32: For Stock and Modified Stock availability refer to the Stock section of the Price Manual
A33: All stock orders are subject to product availability
A34: Order cut-off: Order cutoff is 12:00 midnight EST/EDT, and is based on the program and facility:
B35: - West Coast Service Center : Thursday for all programs
A36: Orders for Modified Stock are limited to 20 doors and/or frames per order

Sheet Cat.658-1 Rev. 0223
E1: SOLD TO: | H1: SHIP TO: | M1: CUST P.O. # | P1: SHIPPING INSTRUCTIONS: | S1: (select on cover page)
A2: F16 - SERIES 5 3/4" | E2: ='Cat.658 Rev. 0223-cover'!B17 -> 0 | H2: ='Cat.658 Rev. 0223-cover'!H17 -> 0 | M2: ='Cat.658 Rev. 0223-cover'!$O$5 -> 0 | R2: =IF('Cat.658 Rev. 0223-cover'!N9,CHAR(82),"") ->  | S2: LTL
E3: ='Cat.658 Rev. 0223-cover'!B18 -> 0 | H3: ='Cat.658 Rev. 0223-cover'!H18 -> 0 | M3: ACCOUNT. # | P3: ='Cat.658 Rev. 0223-cover'!$B$25 -> 0 | R3: =IF('Cat.658 Rev. 0223-cover'!N10,CHAR(82),"") ->  | S3: POOL TRUCK
A4: FRAME PARTS | E4: ='Cat.658 Rev. 0223-cover'!B19 -> 0 | H4: ='Cat.658 Rev. 0223-cover'!H19 -> 0 | M4: ='Cat.658 Rev. 0223-cover'!$O$4 -> 0 | R4: =IF('Cat.658 Rev. 0223-cover'!N11,CHAR(82),"") ->  | S4: OTHER
E5: ='Cat.658 Rev. 0223-cover'!$B$20 -> 0 | H5: ='Cat.658 Rev. 0223-cover'!$H$20 -> 0 | M5: DISCOUNT % | O5: ='Cat.658 Rev. 0223-cover'!$O$6 -> 0
A8: F16 - 5 3/4" - NON-GALV, FRAME PARTS
B9: Part # | C9: Qty. | D9: Description | F9: List Each | G9: Total List | H9: Wgt. Each | I9: Total Wgt. | M9: Part # | N9: Qty. | O9: Description | Q9: List Each | R9: Total List | S9: Wgt. Each | T9: Total Wgt.
B10: 292 | C10: 1 | D10: 6-8 SJ R ASA | F10: 117 | G10: =IF(C10>=1,C10*F10,"") -> 117 | H10: 15 | I10: =IF(C10>=1,C10*H10,"") -> 15 | M10: 324 | N10: 1 | O10: 2-6 HEAD | Q10: 55 | R10: =IF(N10>=1,N10*Q10,"") -> 55 | S10: 6 | T10: =IF(N10>=1,N10*S10,"") -> 6
B11: 19451 | C11: 1 | D11: 6-8 SJ R RPD | F11: 148 | G11: 148 | H11: 15 | I11: 15 | M11: 325 | N11: 1 | O11: 2-8 HEAD | Q11: 55 | R11: =IF(N11>=1,N11*Q11,"") -> 55 | S11: 6 | T11: 6
B12: 7414 | C12: 1 | D12: 6-8 SJ R BLK | F12: 117 | G12: 117 | H12: 15 | I12: 15 | M12: 19703 | N12: 1 | O12: 2-10 HEAD | Q12: 55 | R12: =IF(N12>=1,N12*Q12,"") -> 55 | S12: 6 | T12: 6
B13: 295 | C13: 1 | D13: 6-8 SJ L ASA | F13: 117 | G13: 117 | H13: 15 | I13: 15 | M13: 326* | N13: 1 | O13: 3-0 HEAD | Q13: 55 | R13: =IF(N13>=1,((N13-(INT(N13/55)*55))*Q13)+((INT(N13/55)*55)*U13),"") -> 55 | S13: 7 | T13: 7 | U13: =Q13*0.92 -> 50.6
B14: 19452 | C14: 1 | D14: 6-8 SJ L RPD | F14: 148 | G14: 148 | H14: 15 | I14: 15 | M14: 334 | N14: 1 | O14: 3-0 HEAD 4" Face | Q14: 117 | R14: =IF(N14>=1,N14*Q14,"") -> 117 | S14: 10 | T14: 10
B15: 7415 | C15: 1 | D15: 6-8 SJ L BLK | F15: 117 | G15: 117 | H15: 15 | I15: 15 | M15: 328 | N15: 1 | O15: 3-6 HEAD | Q15: 71 | R15: 71 | S15: 8 | T15: 8
B16: 294 | C16: 1 | D16: 6-8 HJ R WH | F16: 131 | G16: 131 | H16: 17 | I16: 17 | M16: 330 | N16: 1 | O16: 4-0 HEAD | Q16: 71 | R16: 71 | S16: 9 | T16: 9
B17: 297 | C17: 1 | D17: 6-8 HJ L WH | F17: 131 | G17: 131 | H17: 17 | I17: 17 | M17: 331 | N17: 1 | O17: 5-0 HEAD D | Q17: 102 | R17: 102 | S17: 11 | T17: 11
B18: 302* | C18: 1 | D18: 7-0 SJ R ASA | F18: 124 | G18: =IF(C18>=1,((C18-(INT(C18/55)*55))*F18)+((INT(C18/55)*55)*J18),"") -> 124 | H18: 15 | I18: 15 | J18: =(F18-2.3-5.65)*0.92 -> 106.766 | M18: 333 | N18: 1 | O18: 6-0 HEAD D | Q18: 112 | R18: 112 | S18: 13 | T18: 13
B19: 19453 | C19: 1 | D19: 7-0 SJ R RPD | F19: 155 | G19: =IF(C19>=1,C19*F19,"") -> 155 | H19: 15 | I19: 15 | M19: 336 | N19: 1 | O19: 8-0 HEAD D | Q19: 136 | R19: 136 | S19: 18 | T19: 18
B20: 303 | C20: 1 | D20: 7-0 SJ R BLK | F20: 124 | G20: =IF(C20>=1,C20*F20,"") -> 124 | H20: 15 | I20: 15
B21: 305* | C21: 1 | D21: 7-0 SJ L ASA | F21: 124 | G21: =IF(C21>=1,((C21-(INT(C21/55)*55))*F21)+((INT(C21/55)*55)*J21),"") -> 124 | H21: 15 | I21: 15 | J21: =(F21-2.3-5.65)*0.92 -> 106.766
B22: 19454 | C22: 1 | D22: 7-0 SJ L RPD | F22: 155 | G22: =IF(C22>=1,C22*F22,"") -> 155 | H22: 15 | I22: 15
B23: 306 | C23: 1 | D23: 7-0 SJ L BLK | F23: 124 | G23: =IF(C23>=1,C23*F23,"") -> 124 | H23: 15 | I23: 15
B24: 304* | C24: 1 | D24: 7-0 HJ R WH | F24: 135 | G24: =IF(C24>=1,((C24-(INT(C24/55)*55))*F24)+((INT(C24/55)*55)*J24),"") -> 135 | H24: 18 | I24: 18 | J24: =(F24-2.3-5.65)*0.92 -> 116.886
B25: 307* | C25: 1 | D25: 7-0 HJ L WH | F25: 135 | G25: =IF(C25>=1,((C25-(INT(C25/55)*55))*F25)+((INT(C25/55)*55)*J25),"") -> 135 | H25: 18 | I25: 18 | J25: =(F25-2.3-5.65)*0.92 -> 116.886
B26: 318 | C26: 1 | D26: 8-0 SJ R ASA | F26: 154 | G26: =IF(C26>=1,C26*F26,"") -> 154 | H26: 18 | I26: 18
B27: 19455 | C27: 1 | D27: 8-0 SJ R RPD | F27: 185 | G27: 185 | H27: 18 | I27: 18
B28: 320 | C28: 1 | D28: 8-0 SJ L ASA | F28: 154 | G28: 154 | H28: 18 | I28: 18
B29: 19456 | C29: 1 | D29: 8-0 SJ L RPD | F29: 185 | G29: 185 | H29: 18 | I29: 18
B30: 319 | C30: 1 | D30: 8-0 HJ R WH | F30: 183 | G30: 183 | H30: 20 | I30: 20
B31: 321 | C31: 1 | D31: 8-0 HJ L WH | F31: 183 | G31: 183 | H31: 20 | I31: 20
A33: 1. | B33: *Parts entered with quantities in multiples of 55 will be priced with the Kwik Pak price noted in the price book. Anchors not included.
A34: 2. | B34: **End Jambs are the same as Blank Hinge Jambs but priced as Strike Jambs (HJ R/L BLK), and will be invoiced as Blank Strike Jambs.
A35: 3. | B35: Stock uses Steelcraft hinge and lock locations.
A37: This is an official order - Please Sign: | O37: TOTAL WEIGHT | Q37: TOTAL LIST $ | S37: TOTAL NET $
E38: Sheet | G38: of | L38: TOTALS (This page) | O38: =Wgt_658_1_534 -> 456 | Q38: =List_658_1_534 -> 3975 | S38: =(1-O5)*Q38 -> 3975
R40: =SUM(C10:C31)+SUM(N10:N19) -> 32 | S40: =SUM(G10:G31)+SUM(R10:R19) -> 3975 | T40: =SUM(I10:I31)+SUM(T10:T19) -> 456
M42: Cat.658-1 Rev. 0223 | P42: p.129

Sheet Cat.658-2 Rev. 0223
E1: SOLD TO: | H1: SHIP TO: | M1: CUST P.O. # | P1: SHIPPING INSTRUCTIONS: | S1: (select on cover page)
A2: F16 - SERIES 6 1/4" | E2: ='Cat.658 Rev. 0223-cover'!B17 -> 0 | H2: ='Cat.658 Rev. 0223-cover'!H17 -> 0 | M2: ='Cat.658 Rev. 0223-cover'!$O$5 -> 0 | R2: =IF('Cat.658 Rev. 0223-cover'!N9,CHAR(82),"") ->  | S2: LTL
E3: ='Cat.658 Rev. 0223-cover'!B18 -> 0 | H3: ='Cat.658 Rev. 0223-cover'!H18 -> 0 | M3: ACCOUNT. # | P3: ='Cat.658 Rev. 0223-cover'!$B$25 -> 0 | R3: =IF('Cat.658 Rev. 0223-cover'!N10,CHAR(82),"") ->  | S3: POOL TRUCK
A4: FRAME PARTS | E4: ='Cat.658 Rev. 0223-cover'!B19 -> 0 | H4: ='Cat.658 Rev. 0223-cover'!H19 -> 0 | M4: ='Cat.658 Rev. 0223-cover'!$O$4 -> 0 | R4: =IF('Cat.658 Rev. 0223-cover'!N11,CHAR(82),"") ->  | S4: OTHER
E5: ='Cat.658 Rev. 0223-cover'!$B$20 -> 0 | H5: ='Cat.658 Rev. 0223-cover'!$H$20 -> 0 | M5: DISCOUNT % | O5: ='Cat.658 Rev. 0223-cover'!$O$6 -> 0
A8: F16 - 6 1/4" - NON-GALV, FRAME PARTS
B9: Part # | C9: Qty. | D9: Description | F9: List Each | G9: Total List | H9: Wgt. Each | I9: Total Wgt. | M9: Part # | N9: Qty. | O9: Description | Q9: List Each | R9: Total List | S9: Wgt. Each | T9: Total Wgt.
B10: 19044 | C10: 1 | D10: 6-8 SJ R ASA | F10: 127 | G10: =IF(C10>=1,C10*F10,"") -> 127 | H10: 17 | I10: =IF(C10>=1,C10*H10,"") -> 17 | M10: 19706 | O10: 2-6 HEAD | Q10: 63 | R10: =IF(N10>=1,N10*Q10,"") ->  | S10: 6 | T10: =IF(N10>=1,N10*S10,"") -> 
B11: 19457 | C11: 1 | D11: 6-8 SJ R RPD | F11: 158 | G11: 158 | H11: 17 | I11: 17 | M11: 19707 | O11: 2-8 HEAD | Q11: 63 | S11: 7
B12: 19045 | C12: 1 | D12: 6-8 SJ L ASA | F12: 127 | G12: 127 | H12: 17 | I12: 17 | M12: 19708 | O12: 2-10 HEAD | Q12: 63 | S12: 7
B13: 19458 | C13: 1 | D13: 6-8 SJ L RPD | F13: 158 | G13: 158 | H13: 17 | I13: 17 | M13: 19062 | O13: 3-0 HEAD | Q13: 63 | S13: 8
B14: 19046 | C14: 1 | D14: 6-8 HJ R WH | F14: 141 | G14: 141 | H14: 19 | I14: 19 | M14: 19709 | O14: 3-6 HEAD | Q14: 80 | S14: 8
B15: 19047 | C15: 1 | D15: 6-8 HJ L WH | F15: 141 | G15: 141 | H15: 19 | I15: 19 | M15: 19710 | O15: 4-0 HEAD | Q15: 80 | S15: 10
B16: 19048 | C16: 1 | D16: 7-0 SJ R ASA | F16: 137 | G16: 137 | H16: 17 | I16: 17 | M16: 19711 | O16: 5-0 HEAD D | Q16: 108 | S16: 12
B17: 19459 | C17: 1 | D17: 7-0 SJ R RPD | F17: 168 | G17: 168 | H17: 17 | I17: 17 | M17: 19586 | O17: 6-0 HEAD D | Q17: 120 | S17: 14
B18: 19049 | C18: 1 | D18: 7-0 SJ L ASA | F18: 137 | G18: 137 | H18: 17 | I18: 17 | M18: 19712 | O18: 8-0 HEAD D | Q18: 146 | S18: 19
B19: 19460 | C19: 1 | D19: 7-0 SJ L RPD | F19: 168 | G19: 168 | H19: 17 | I19: 17
B20: 19052 | C20: 1 | D20: 7-0 HJ R WH | F20: 149 | G20: 149 | H20: 20 | I20: 20
B21: 19053 | C21: 1 | D21: 7-0 HJ L WH | F21: 149 | G21: 149 | H21: 20 | I21: 20
B22: 19463 | C22: 1 | D22: 8-0 SJ R ASA | F22: 160 | G22: 160 | H22: 20 | I22: 20
B23: 19464 | C23: 1 | D23: 8-0 SJ R RPD | F23: 191 | G23: 191 | H23: 20 | I23: 20
B24: 19465 | C24: 1 | D24: 8-0 SJ L ASA | F24: 160 | G24: 160 | H24: 20 | I24: 20
B25: 19466 | C25: 1 | D25: 8-0 SJ L RPD | F25: 191 | G25: 191 | H25: 20 | I25: 20
B26: 19461 | C26: 1 | D26: 8-0 HJ R WH | F26: 187 | G26: 187 | H26: 21 | I26: 21
B27: 19462 | C27: 1 | D27: 8-0 HJ L WH | F27: 187 | G27: 187 | H27: 21 | I27: 21
A29: 1. | B29: *Parts entered with quantities in multiples of 55 will be priced with the Kwik Pak price noted in the price book. Anchors not included.
A30: 2. | B30: **End Jambs are the same as Blank Hinge Jambs but priced as Strike Jambs (HJ R/L BLK), and will be invoiced as Blank Strike Jambs.
A31: 3. | B31: Stock uses Steelcraft hinge and lock locations.
A33: This is an official order - Please Sign: | O33: TOTAL WEIGHT | Q33: TOTAL LIST $ | S33: TOTAL NET $
E34: Sheet | G34: of | L34: TOTALS (This page) | O34: =Wgt_658_1_614 -> 336 | Q34: =List_658_1_614 -> 2836 | S34: =(1-O5)*Q34 -> 2836
R36: =SUM(C10:C27)+SUM(N10:N18) -> 18 | S36: =SUM(G10:G27)+SUM(R10:R18) -> 2836 | T36: =SUM(I10:I27)+SUM(T10:T18) -> 336
M38: Cat.658-2 Rev. 0223 | P38: p.129

Sheet Cat.658-3 Rev. 0223
E1: SOLD TO: | H1: SHIP TO: | M1: CUST P.O. # | P1: SHIPPING INSTRUCTIONS | S1: (select on cover page)
A2: F16 - SERIES 7 3/4" | E2: ='Cat.658 Rev. 0223-cover'!B17 -> 0 | H2: ='Cat.658 Rev. 0223-cover'!H17 -> 0 | M2: ='Cat.658 Rev. 0223-cover'!$O$5 -> 0 | R2: =IF('Cat.658 Rev. 0223-cover'!N9,CHAR(82),"") ->  | S2: LTL
E3: ='Cat.658 Rev. 0223-cover'!B18 -> 0 | H3: ='Cat.658 Rev. 0223-cover'!H18 -> 0 | M3: ACCOUNT. # | P3: ='Cat.658 Rev. 0223-cover'!$B$25 -> 0 | R3: =IF('Cat.658 Rev. 0223-cover'!N10,CHAR(82),"") ->  | S3: POOL TRUCK
A4: FRAME PARTS | E4: ='Cat.658 Rev. 0223-cover'!B19 -> 0 | H4: ='Cat.658 Rev. 0223-cover'!H19 -> 0 | M4: ='Cat.658 Rev. 0223-cover'!$O$4 -> 0 | R4: =IF('Cat.658 Rev. 0223-cover'!N11,CHAR(82),"") ->  | S4: OTHER
E5: ='Cat.658 Rev. 0223-cover'!$B$20 -> 0 | H5: ='Cat.658 Rev. 0223-cover'!$H$20 -> 0 | M5: DISCOUNT % | O5: ='Cat.658 Rev. 0223-cover'!$O$6 -> 0
A8: F16 - 7 3/4" - NON-GALV, FRAME PARTS
B9: Part # | C9: Qty. | D9: Description | F9: List Each | G9: Total List | H9: Wgt. Each | I9: Total Wgt. | M9: Part # | N9: Qty. | O9: Description | Q9: List Each | R9: Total List | S9: Wgt. Each | T9: Total Wgt.
B10: 713 | D10: 6-8 SJ R ASA | F10: 127 | G10: =IF(C10>=1,C10*F10,"") ->  | H10: 17 | I10: =IF(C10>=1,C10*H10,"") ->  | M10: 19713 | O10: 2-6 HEAD | Q10: 63 | R10: =IF(N10>=1,N10*Q10,"") ->  | S10: 7 | T10: =IF(N10>=1,N10*S10,"") -> 
B11: 19467 | D11: 6-8 SJ R RPD | F11: 158 | H11: 18 | M11: 19714 | O11: 2-8 HEAD | Q11: 63 | S11: 7
B12: 715 | D12: 6-8 SJ L ASA | F12: 127 | H12: 17 | M12: 19715 | O12: 2-10 HEAD | Q12: 63 | S12: 8
B13: 19469 | D13: 6-8 SJ L RPD | F13: 158 | H13: 18 | M13: 706 | O13: 3-0 HEAD | Q13: 63 | S13: 8
B14: 714 | D14: 6-8 HJ R WH | F14: 141 | H14: 20 | M14: 19717 | O14: 3-6 HEAD | Q14: 80 | S14: 9
B15: 716 | D15: 6-8 HJ L WH | F15: 141 | H15: 20 | M15: 19718 | O15: 4-0 HEAD | Q15: 80 | S15: 11
B16: 717 | D16: 7-0 SJ R ASA | F16: 137 | H16: 18 | M16: 19719 | O16: 5-0 HEAD D | Q16: 108 | S16: 13
B17: 19473 | D17: 7-0 SJ R RPD | F17: 168 | H17: 19 | M17: 19587 | O17: 6-0 HEAD D | Q17: 120 | S17: 17
B18: 719 | D18: 7-0 SJ L ASA | F18: 137 | H18: 18 | M18: 19720 | O18: 8-0 HEAD D | Q18: 146 | S18: 21
B19: 19475 | D19: 7-0 SJ L RPD | F19: 168 | H19: 19
B20: 19685 | D20: 7-0 EJ R** | F20: 137 | H20: 18
B21: 19686 | D21: 7-0 EJ L** | F21: 137 | H21: 18
B22: 718 | D22: 7-0 HJ R WH | F22: 149 | H22: 22
B23: 720 | D23: 7-0 HJ L WH | F23: 149 | H23: 22
B24: 19480 | D24: 8-0 SJ R ASA | F24: 160 | H24: 22
B25: 19481 | D25: 8-0 SJ R RPD | F25: 191 | H25: 22
B26: 19482 | D26: 8-0 SJ L ASA | F26: 160 | H26: 22
B27: 19483 | D27: 8-0 SJ L RPD | F27: 191 | H27: 22
B28: 19478 | D28: 8-0 HJ R WH | F28: 187 | H28: 23
B29: 19479 | D29: 8-0 HJ L WH | F29: 187 | H29: 23
A31: 1. | B31: *Parts entered with quantities in multiples of 55 will be priced with the Kwik Pak price noted in the price book. Anchors not included.
A32: 2. | B32: **End Jambs are the same as Blank Hinge Jambs but priced as Strike Jambs (HJ R/L BLK), and will be invoiced as Blank Strike Jambs.
A33: 3. | B33: Stock uses Steelcraft hinge and lock locations.
A35: This is an official order - Please Sign: | O35: TOTAL WEIGHT | Q35: TOTAL LIST $ | S35: TOTAL NET $
E36: Sheet | G36: of | L36: TOTALS (This page) | O36: =Wgt_658_1_734 -> 0 | Q36: =List_658_1_734 -> 0 | S36: =(1-O5)*Q36 -> 0
R38: =SUM(C10:C29)+SUM(N10:N18) -> 0 | S38: =SUM(G10:G29)+SUM(R10:R18) -> 0 | T38: =SUM(I10:I29)+SUM(T10:T18) -> 0
M40: Cat.658-3 Rev. 0223 | P40: p.129

Sheet Cat.658-4 Rev. 0223
E1: SOLD TO: | H1: SHIP TO: | M1: CUST P.O. # | P1: SHIPPING INSTRUCTIONS | S1: (select on cover page)
A2: F16 - SERIES 8 1/4" | E2: ='Cat.658 Rev. 0223-cover'!B17 -> 0 | H2: ='Cat.658 Rev. 0223-cover'!H17 -> 0 | M2: ='Cat.658 Rev. 0223-cover'!$O$5 -> 0 | R2: =IF('Cat.658 Rev. 0223-cover'!N9,CHAR(82),"") ->  | S2: LTL
E3: ='Cat.658 Rev. 0223-cover'!B18 -> 0 | H3: ='Cat.658 Rev. 0223-cover'!H18 -> 0 | M3: ACCOUNT. # | P3: ='Cat.658 Rev. 0223-cover'!$B$25 -> 0 | R3: =IF('Cat.658 Rev. 0223-cover'!N10,CHAR(82),"") ->  | S3: POOL TRUCK
A4: FRAME PARTS | E4: ='Cat.658 Rev. 0223-cover'!B19 -> 0 | H4: ='Cat.658 Rev. 0223-cover'!H19 -> 0 | M4: ='Cat.658 Rev. 0223-cover'!$O$4 -> 0 | R4: =IF('Cat.658 Rev. 0223-cover'!N11,CHAR(82),"") ->  | S4: OTHER
E5: ='Cat.658 Rev. 0223-cover'!$B$20 -> 0 | H5: ='Cat.658 Rev. 0223-cover'!$H$20 -> 0 | M5: DISCOUNT % | O5: ='Cat.658 Rev. 0223-cover'!$O$6 -> 0
A8: F16 - 8 1/4" - NON-GALV, FRAME PARTS
B9: Part # | C9: Qty. | D9: Description | F9: List Each | G9: Total List | H9: Wgt. Each | I9: Total Wgt. | M9: Part # | N9: Qty. | O9: Description | Q9: List Each | R9: Total List | S9: Wgt. Each | T9: Total Wgt.
B10: 7460 | D10: 6-8 SJ R ASA | F10: 145 | G10: =IF(C10>=1,C10*F10,"") ->  | H10: 18 | I10: =IF(C10>=1,C10*H10,"") ->  | M10: 19721 | O10: 2-6 HEAD | Q10: 75 | R10: =IF(N10>=1,N10*Q10,"") ->  | S10: 7 | T10: =IF(N10>=1,N10*S10,"") -> 
B11: 19485 | D11: 6-8 SJ R RPD | F11: 176 | H11: 19 | M11: 19722 | O11: 2-8 HEAD | Q11: 75 | S11: 7
B12: 7461 | D12: 6-8 SJ L ASA | F12: 145 | H12: 18 | M12: 19723 | O12: 2-10 HEAD | Q12: 75 | S12: 8
B13: 19487 | D13: 6-8 SJ L RPD | F13: 176 | H13: 19 | M13: 808 | O13: 3-0 HEAD | Q13: 75 | S13: 9
B14: 7462 | D14: 6-8 HJ R WH | F14: 163 | H14: 20 | M14: 19725 | O14: 3-6 HEAD | Q14: 91 | S14: 10
B15: 7463 | D15: 6-8 HJ L WH | F15: 163 | H15: 20 | M15: 7471 | O15: 4-0 HEAD | Q15: 91 | S15: 12
B16: 802 | D16: 7-0 SJ R ASA | F16: 150 | H16: 21 | M16: 19727 | O16: 5-0 HEAD D | Q16: 121 | S16: 14
B17: 19492 | D17: 7-0 SJ R RPD | F17: 181 | H17: 21 | M17: 7473 | O17: 6-0 HEAD D | Q17: 137 | S17: 18
B18: 806 | D18: 7-0 SJ L ASA | F18: 150 | H18: 21 | M18: 19729 | O18: 8-0 HEAD D | Q18: 169 | S18: 21
B19: 19494 | D19: 7-0 SJ L RPD | F19: 181 | H19: 21
B20: 803 | D20: 7-0 HJ R WH | F20: 169 | H20: 23
B21: 807 | D21: 7-0 HJ L WH | F21: 169 | H21: 23
B22: 19499 | D22: 8-0 SJ R ASA | F22: 182 | H22: 22
B23: 19700 | D23: 8-0 SJ R RPD | F23: 213 | H23: 22
B24: 19701 | D24: 8-0 SJ L ASA | F24: 182 | H24: 22
B25: 19702 | D25: 8-0 SJ L RPD | F25: 213 | H25: 22
B26: 19497 | D26: 8-0 HJ R WH | F26: 208 | H26: 23
B27: 19498 | D27: 8-0 HJ L WH | F27: 208 | H27: 23
A29: 1. | B29: *Parts entered with quantities in multiples of 55 will be priced with the Kwik Pak price noted in the price book. Anchors not included.
A30: 2. | B30: **End Jambs are the same as Blank Hinge Jambs but priced as Strike Jambs (HJ R/L BLK), and will be invoiced as Blank Strike Jambs.
A31: 3. | B31: Stock uses Steelcraft hinge and lock locations.
A33: This is an official order - Please Sign: | O33: TOTAL WEIGHT | Q33: TOTAL LIST $ | S33: TOTAL NET $
E34: Sheet | G34: of | L34: TOTALS (This page) | O34: =Wgt_658_1_814 -> 0 | Q34: =List_658_1_814 -> 0 | S34: =(1-O5)*Q34 -> 0
R36: =SUM(C10:C27)+SUM(N10:N18) -> 0 | S36: =SUM(G10:G27)+SUM(R10:R18) -> 0 | T36: =SUM(I10:I27)+SUM(T10:T18) -> 0
M38: Cat.658-4 Rev. 0223 | P38: p.129

Sheet Cat.658-5 Rev. 0223
E1: SOLD TO: | I1: SHIP TO: | M1: CUST P.O. # | P1: SHIPPING INSTRUCTIONS | V1: (select on cover page)
A2: FACTORY STOCK | E2: ='Cat.658 Rev. 0223-cover'!B17 -> 0 | H2: ='Cat.658 Rev. 0223-cover'!H17 -> 0 | M2: ='Cat.658 Rev. 0223-cover'!$O$5 -> 0 | U2: =IF('Cat.658 Rev. 0223-cover'!N9,CHAR(82),"") ->  | V2: LTL
A3: WELDED FRAMES | E3: ='Cat.658 Rev. 0223-cover'!B18 -> 0 | H3: ='Cat.658 Rev. 0223-cover'!H18 -> 0 | M3: ACCOUNT. # | P3: OMIT ANCHORS | U3: =IF('Cat.658 Rev. 0223-cover'!N10,CHAR(82),"") ->  | V3: POOL TRUCK
E4: ='Cat.658 Rev. 0223-cover'!B19 -> 0 | H4: ='Cat.658 Rev. 0223-cover'!H19 -> 0 | M4: ='Cat.658 Rev. 0223-cover'!$O$4 -> 0 | S4: JAMB | U4: =IF('Cat.658 Rev. 0223-cover'!N11,CHAR(82),"") ->  | V4: OTHER
E5: ='Cat.658 Rev. 0223-cover'!$B$20 -> 0 | H5: ='Cat.658 Rev. 0223-cover'!$H$20 -> 0 | M5: DISCOUNT % | O5: ='Cat.658 Rev. 0223-cover'!$O$6 -> 0 | S5: BASE
A7: Factory Stock Welded Frames
A8: Qty. | B8: SKU | C8: Pkg. Qty | D8: Pkg. Contents | F8: SUA Stock Item | L8: Pkg. Weight | N8: Pkg. List $ | P8: Extended Weight | T8: Extended List $ | V8: Total Frames
B9: 10211 | C9: 24 | D9: 12 | F9: F16 4 5 3/4 3070 RH, ASA, PA/RA Reinf. CRS | L9: 1040 | N9: 11088 | P9: =IF(A9>=1,A9*L9,"") ->  | T9: =IF(A9>=1,A9*N9,"") ->  | V9: =IF(A9>=1,A9*C9,"") -> 
D10: 12 | F10: F16 4 5 3/4 3070 LH, ASA, PA/RA Reinf. CRS
B11: 7676 | C11: 24 | D11: 24 | F11: F16 4 5 3/4 3070 RH, ASA, PA/RA Reinf., CRS | L11: 1040 | N11: 11088 | P11: =IF(A11>=1,A11*L11,"") ->  | T11: =IF(A11>=1,A11*N11,"") ->  | V11: =IF(A11>=1,A11*C11,"") -> 
B12: 7677 | C12: 24 | D12: 24 | F12: F16 4 5 3/4 3070 LH, ASA, PA/RA Reinf., CRS | L12: 1040 | N12: 11088 | P12: =IF(A12>=1,A12*L12,"") ->  | T12: =IF(A12>=1,A12*N12,"") ->  | V12: =IF(A12>=1,A12*C12,"") -> 
A14: Notes:
A15: 1) Frames are welded, ground smooth and prime painted. All welded frames contain at least one shipping bar.
A16: 2) Frames shown as "GALV" are manufactured from A60 Galvannealed material conforming to ASTM A 653. All hardware reinforcements are also galvanized.
A17: 3) Frames are skidded, banded and wrapped for shipping. Package quantities cannot be broken.
A18: 4) All frames are shipped minus all anchors, list prices reflect standard anchor deduct of $15.90 per frame.
A19: 5) All hardware locations are Steelcraft standards.
A20: 6) Stock uses Steelcraft hinge and lock locations.
Q29: =SUM(P9:P12) -> 0 | R29: =SUM(T9:T12) -> 0
R30: =SUM(A9:A12) -> 0
A32: This is an official order - Please Sign: | O32: TOTAL WEIGHT | S32: TOTAL LIST $ | U32: TOTAL NET $
F33: Sheet | I33: of | L33: TOTALS (This page) | O33: =wgt_658_24 -> 0 | S33: =list_658_24 -> 0 | U33: =(1-O5)*S33 -> 0
M37: Cat.658-5 Rev. 0223 | P37: p.130

Sheet Cat.658-10 Rev. 0223
E1: SOLD TO: | H1: SHIP TO: | L1: CUST P.O. # | O1: SHIPPING INSTRUCTIONS | R1: (select on cover page)
A2: K16 - SERIES | E2: ='Cat.658 Rev. 0223-cover'!B17 -> 0 | H2: ='Cat.658 Rev. 0223-cover'!H17 -> 0 | L2: ='Cat.658 Rev. 0223-cover'!$O$5 -> 0 | Q2: =IF('Cat.658 Rev. 0223-cover'!N9,CHAR(82),"") ->  | R2: LTL
A3: 5 7/8" and 6 1/4" | E3: ='Cat.658 Rev. 0223-cover'!B18 -> 0 | H3: ='Cat.658 Rev. 0223-cover'!H18 -> 0 | L3: ACCOUNT. # | O3: ='Cat.658 Rev. 0223-cover'!$B$25 -> 0 | Q3: =IF('Cat.658 Rev. 0223-cover'!N10,CHAR(82),"") ->  | R3: POOL TRUCK
A4: FRAME PARTS | E4: ='Cat.658 Rev. 0223-cover'!B19 -> 0 | H4: ='Cat.658 Rev. 0223-cover'!H19 -> 0 | L4: ='Cat.658 Rev. 0223-cover'!$O$4 -> 0 | Q4: =IF('Cat.658 Rev. 0223-cover'!N11,CHAR(82),"") ->  | R4: OTHER
E5: ='Cat.658 Rev. 0223-cover'!$B$20 -> 0 | H5: ='Cat.658 Rev. 0223-cover'!$H$20 -> 0 | L5: DISCOUNT % | N5: ='Cat.658 Rev. 0223-cover'!$O$6 -> 0
A7: K16 - 5 7/8" - NON-GALV, FRAME PARTS | K7: K16 - 6 1/4" - NON-GALV, FRAME PARTS
B8: Part # | C8: Qty. | D8: Description | F8: List Each | G8: Total List | H8: Wgt. Each | I8: Total Wgt. | L8: Part # | M8: Qty. | N8: Description | P8: List Each | Q8: Total List | R8: Wgt. Each | S8: Total Wgt.
B9: 19156 | D9: 6-8 SJ R ASA | F9: 120 | G9: =IF(C9>=1,C9*F9,"") ->  | H9: 17 | I9: =IF(C9>=1,C9*H9,"") ->  | L9: 19761 | N9: 6-8 SJ R ASA | P9: 134 | Q9: =IF(M9>=1,M9*P9,"") ->  | R9: 17 | S9: =IF(M9>=1,M9*R9,"") -> 
B10: 19730 | D10: 6-8 SJ R RPD | F10: 151 | H10: 17 | L10: 19736 | N10: 6-8 SJ R RPD | P10: 165 | R10: 17
B11: 19157 | D11: 6-8 SJ L ASA | F11: 120 | H11: 17 | L11: 19179 | N11: 6-8 SJ L ASA | P11: 134 | R11: 17
B12: 19731 | D12: 6-8 SJ L RPD | F12: 151 | H12: 17 | L12: 19737 | N12: 6-8 SJ L RPD | P12: 165 | R12: 17
B13: 19158 | D13: 6-8 HJ R WH | F13: 132 | H13: 18 | L13: 19180 | N13: 6-8 HJ R WH | P13: 153 | R13: 18
B14: 19159 | D14: 6-8 HJ L WH | F14: 132 | H14: 18 | L14: 19181 | N14: 6-8 HJ L WH | P14: 153 | R14: 18
B15: 19160 | D15: 7-0 SJ R ASA | F15: 133 | H15: 18 | L15: 19182 | N15: 7-0 SJ R ASA | P15: 146 | R15: 18
B16: 19732 | D16: 7-0 SJ R RPD | F16: 164 | H16: 18 | L16: 19738 | N16: 7-0 SJ R RPD | P16: 177 | R16: 18
B17: 19161 | D17: 7-0 SJ L ASA | F17: 133 | H17: 18 | L17: 19183 | N17: 7-0 SJ L ASA | P17: 146 | R17: 18
B18: 19733 | D18: 7-0 SJ L RPD | F18: 164 | H18: 18 | L18: 19739 | N18: 7-0 SJ L RPD | P18: 177 | R18: 18
B19: 19164 | D19: 7-0 HJ R WH | F19: 142 | H19: 19 | L19: 19186 | N19: 7-0 HJ R WH | P19: 159 | R19: 19
B20: 19165 | D20: 7-0 HJ L WH | F20: 142 | H20: 19 | L20: 19187 | N20: 7-0 HJ L WH | P20: 159 | R20: 19
B21: 19166 | D21: 8-0 SJ R ASA | F21: 157 | H21: 20 | L21: 19740 | N21: 8-0 SJ R ASA | P21: 171 | R21: 20
B22: 19734 | D22: 8-0 SJ R RPD | F22: 188 | H22: 20 | L22: 19741 | N22: 8-0 SJ R RPD | P22: 202 | R22: 20
B23: 19167 | D23: 8-0 SJ L ASA | F23: 157 | H23: 20 | L23: 19742 | N23: 8-0 SJ L ASA | P23: 171 | R23: 20
B24: 19735 | D24: 8-0 SJ L RPD | F24: 188 | H24: 20 | L24: 19743 | N24: 8-0 SJ L RPD | P24: 202 | R24: 20
B25: 19168 | D25: 8-0 HJ R WH | F25: 179 | H25: 21 | L25: 19744 | N25: 8-0 HJ R WH | P25: 199 | R25: 21
B26: 19169 | D26: 8-0 HJ L WH | F26: 179 | H26: 21 | L26: 19745 | N26: 8-0 HJ L WH | P26: 199 | R26: 21
B27: 19756 | D27: 2-6 HEAD | F27: 59 | H27: 6 | L27: 19194 | N27: 2-6 HEAD | P27: 75 | R27: 6
B28: 19757 | D28: 2-8 HEAD | F28: 59 | H28: 7 | L28: 19195 | N28: 2-8 HEAD | P28: 75 | R28: 7
B29: 19174 | D29: 3-0 HEAD | F29: 59 | H29: 8 | L29: 19196 | N29: 3-0 HEAD | P29: 75 | R29: 8
B30: 19758 | D30: 3-6 HEAD | F30: 74 | H30: 9 | L30: 19197 | N30: 3-6 HEAD | P30: 92 | R30: 9
B31: 19759 | D31: 4-0 HEAD | F31: 74 | H31: 10 | L31: 19198 | N31: 4-0 HEAD | P31: 92 | R31: 10
B32: 19760 | D32: 5-0 HEAD D | F32: 113 | H32: 12 | L32: 19766 | N32: 5-0 HEAD D | P32: 122 | R32: 12
B33: 19177 | D33: 6-0 HEAD D | F33: 113 | H33: 16 | L33: 19199 | N33: 6-0 HEAD D | P33: 122 | R33: 15
A34: 1. | B34: Stock uses Steelcraft hinge and lock locations
A36: This is an official order - Please Sign: | N36: TOTAL WEIGHT | P36: TOTAL LIST $ | R36: TOTAL NET $
E37: Sheet | G37: of | K37: TOTALS (This page) | N37: =Wgt_658_4 -> 0 | P37: =List_658_4 -> 0 | R37: =(1-N5)*P37 -> 0
Q40: =SUM(C9:C33)+SUM(M9:M33) -> 0 | R40: =SUM(G9:G33)+SUM(Q9:Q33) -> 0 | S40: =SUM(I9:I33)+SUM(S9:S33) -> 0
L44: Cat.658-10 Rev. 0223 | O44: p.130

Sheet Cat.658-11 Rev. 0223
E1: SOLD TO: | H1: SHIP TO: | L1: CUST P.O. # | O1: SHIPPING INSTRUCTIONS | R1: (select on cover page)
A2: K16 - SERIES 8 1/4" | E2: ='Cat.658 Rev. 0223-cover'!B17 -> 0 | H2: ='Cat.658 Rev. 0223-cover'!H17 -> 0 | L2: ='Cat.658 Rev. 0223-cover'!$O$5 -> 0 | Q2: =IF('Cat.658 Rev. 0223-cover'!N9,CHAR(82),"") ->  | R2: LTL
A3: FRAME PARTS | E3: ='Cat.658 Rev. 0223-cover'!B18 -> 0 | H3: ='Cat.658 Rev. 0223-cover'!H18 -> 0 | L3: ACCOUNT. # | O3: ='Cat.658 Rev. 0223-cover'!$B$25 -> 0 | Q3: =IF('Cat.658 Rev. 0223-cover'!N10,CHAR(82),"") ->  | R3: POOL TRUCK
E4: ='Cat.658 Rev. 0223-cover'!B19 -> 0 | H4: ='Cat.658 Rev. 0223-cover'!H19 -> 0 | L4: ='Cat.658 Rev. 0223-cover'!$O$4 -> 0 | Q4: =IF('Cat.658 Rev. 0223-cover'!N11,CHAR(82),"") ->  | R4: OTHER
E5: ='Cat.658 Rev. 0223-cover'!$B$20 -> 0 | H5: ='Cat.658 Rev. 0223-cover'!$H$20 -> 0 | L5: DISCOUNT % | N5: ='Cat.658 Rev. 0223-cover'!$O$6 -> 0
A7: K16 - 8 1/4" - NON-GALV, FRAME PARTS
B8: Part # | C8: Qty. | D8: Description | F8: List Each | G8: Total List | H8: Wgt. Each | I8: Total Wgt.
B9: 19236 | D9: 6-8 SJ R ASA | F9: 145 | G9: =IF(C9>=1,C9*F9,"") ->  | H9: 20 | I9: =IF(C9>=1,C9*H9,"") ->  | Q9: =IF(M9>=1,M9*P9,"") ->  | S9: =IF(M9>=1,M9*R9,"") -> 
B10: 19746 | D10: 6-8 SJ R RPD | F10: 176 | H10: 20
B11: 19237 | D11: 6-8 SJ L ASA | F11: 145 | H11: 20
B12: 19747 | D12: 6-8 SJ L RPD | F12: 176 | H12: 20
B13: 19238 | D13: 6-8 HJ R WH | F13: 167 | H13: 21
B14: 19239 | D14: 6-8 HJ L WH | F14: 167 | H14: 21
B15: 19240 | D15: 7-0 SJ R ASA | F15: 151 | H15: 21
B16: 19748 | D16: 7-0 SJ R RPD | F16: 182 | H16: 21
B17: 19241 | D17: 7-0 SJ L ASA | F17: 151 | H17: 21
B18: 19749 | D18: 7-0 SJ L RPD | F18: 182 | H18: 21
B19: 19242 | D19: 7-0 HJ R WH | F19: 176 | H19: 22
B20: 19243 | D20: 7-0 HJ L WH | F20: 176 | H20: 22
B21: 19750 | D21: 8-0 SJ R ASA | F21: 179 | H21: 23
B22: 19751 | D22: 8-0 SJ R RPD | F22: 210 | H22: 23
B23: 19752 | D23: 8-0 SJ L ASA | F23: 179 | H23: 23
B24: 19753 | D24: 8-0 SJ L RPD | F24: 210 | G24: =IF(C24>=1,C24*F24,"") ->  | H24: 23 | Q24: =IF(M24>=1,M24*P24,"") ->  | S24: =IF(M24>=1,M24*R24,"") -> 
B25: 19754 | D25: 8-0 HJ R WH | F25: 214 | H25: 24
B26: 19755 | D26: 8-0 HJ L WH | F26: 214 | H26: 24
B27: 19768 | D27: 2-6 HEAD | F27: 87 | H27: 7
B28: 19769 | D28: 2-8 HEAD | F28: 87 | H28: 8
B29: 19252 | D29: 3-0 HEAD | F29: 87 | H29: 9
B30: 19253 | D30: 3-6 HEAD | F30: 99 | H30: 10
B31: 19254 | D31: 4-0 HEAD | F31: 99 | H31: 11
B32: 19772 | D32: 5-0 HEAD D | F32: 136 | H32: 14
B33: 19255 | D33: 6-0 HEAD D | F33: 136 | H33: 17
A34: 1. | B34: Stock uses Steelcraft hinge and lock locations
A36: This is an official order - Please Sign: | N36: TOTAL WEIGHT | P36: TOTAL LIST $ | R36: TOTAL NET $
E37: Sheet | G37: of | K37: TOTALS (This page) | N37: =Wgt_658_4_814 -> 0 | P37: =List_658_4_814 -> 0 | R37: =(1-N5)*P37 -> 0
Q40: =SUM(C9:C33) -> 0 | R40: =SUM(G9:G33) -> 0 | S40: =SUM(I9:I33) -> 0
L44: Cat.658-11 Rev. 0223 | O44: p.130

Sheet Cat.658-20-Rev. 0223
E1: SOLD TO: | H1: SHIP TO: | L1: CUST P.O. # | O1: SHIPPING INSTRUCTIONS | R1: (select on cover page)
A2: L-18 SERIES | E2: ='Cat.658 Rev. 0223-cover'!B17 -> 0 | H2: ='Cat.658 Rev. 0223-cover'!H17 -> 0 | L2: ='Cat.658 Rev. 0223-cover'!$O$5 -> 0 | Q2: =IF('Cat.658 Rev. 0223-cover'!N9,CHAR(82),"") ->  | R2: LTL
A3: 6'8" FLUSH DOORS | E3: ='Cat.658 Rev. 0223-cover'!B18 -> 0 | H3: ='Cat.658 Rev. 0223-cover'!H18 -> 0 | L3: ACCOUNT. # | O3: ='Cat.658 Rev. 0223-cover'!$B$25 -> 0 | Q3: =IF('Cat.658 Rev. 0223-cover'!N10,CHAR(82),"") ->  | R3: POOL TRUCK
C4: NON-GALV, HONEYCOMB | E4: ='Cat.658 Rev. 0223-cover'!B19 -> 0 | H4: ='Cat.658 Rev. 0223-cover'!H19 -> 0 | L4: ='Cat.658 Rev. 0223-cover'!$O$4 -> 0 | Q4: =IF('Cat.658 Rev. 0223-cover'!N11,CHAR(82),"") ->  | R4: OTHER
E5: ='Cat.658 Rev. 0223-cover'!$B$20 -> 0 | H5: ='Cat.658 Rev. 0223-cover'!$H$20 -> 0 | L5: DISCOUNT % | N5: ='Cat.658 Rev. 0223-cover'!$O$6 -> 0
A7: 2'6" WIDE, L-18, NON-GALV, HONEYCOMB, (WH) WARNOCK HERSEY | K7: 2'8" WIDE, L-18, NON-GALV, HONEYCOMB, (WH) WARNOCK HERSEY
B8: Part # | C8: Qty. | D8: Description | F8: List Each | G8: Total List | H8: Wgt. Each | I8: Total Wgt. | L8: Part # | M8: Qty. | N8: Description | P8: List Each | Q8: Total List | R8: Wgt. Each | S8: Total Wgt.
B9: 19606 | D9: 2668 F R/LHR 161 C WH | F9: 924 | G9: =IF(C9>=1,C9*F9,"") ->  | H9: 80 | I9: =IF(C9>=1,C9*H9,"") ->  | L9: 19612 | N9: 2868 F R/LHR 161 C WH | P9: 924 | Q9: =IF(M9>=1,M9*P9,"") ->  | R9: 84 | S9: =IF(M9>=1,M9*R9,"") -> 
B10: 19607 | D10: 2668 F L/RHR 161 C WH | F10: 924 | H10: 80 | L10: 19613 | N10: 2868 F L/RHR 161 C WH | P10: 924 | R10: 84
B11: 19608 | D11: 2668 F R/LHR 86ED C WH | F11: 924 | H11: 80 | L11: 19614 | N11: 2868 F R/LHR 86ED C WH | P11: 924 | R11: 84
B12: 19609 | D12: 2668 F L/RHR 86ED C WH | F12: 924 | H12: 80 | L12: 19615 | N12: 2868 F L/RHR 86ED C WH | P12: 924 | R12: 84
B13: 19610 | D13: 2668 F R/LHR RPD C WH | F13: 976 | H13: 80 | L13: 19616 | N13: 2868 F R/LHR RPD C WH | P13: 976 | R13: 84
B14: 19611 | D14: 2668 F L/RHR RPD C WH | F14: 976 | H14: 80 | L14: 19617 | N14: 2868 F L/RHR RPD C WH | P14: 976 | R14: 84
K16: 3'0" WIDE, L-18, NON-GALV, HONEYCOMB, (WH) WARNOCK HERSEY
B17: Part # | C17: Qty. | D17: Description | F17: List Each | G17: Total List | H17: Wgt. Each | I17: Total Wgt. | L17: Part # | M17: Qty. | N17: Description | P17: List Each | Q17: Total List | R17: Wgt. Each | S17: Total Wgt.
B18: 036 | D18: 3068 F R/LHR 61L C WH | F18: 932 | G18: =IF(C18>=1,C18*F18,"") ->  | H18: =95+6 -> 101 | I18: =IF(C18>=1,C18*H18,"") ->  | L18: 076 | N18: 3068 F R/LHR 86ED C WH | P18: 932 | Q18: =IF(M18>=1,M18*P18,"") ->  | R18: =95+6 -> 101 | S18: =IF(M18>=1,M18*R18,"") -> 
B19: 037 | D19: 3068 F L/RHR 61L C WH | F19: 932 | G19: =IF(C19>=1,C19*F19,"") ->  | H19: =95+6 -> 101 | I19: =IF(C19>=1,C19*H19,"") ->  | L19: 077 | N19: 3068 F L/RHR 86ED C WH | P19: 932 | Q19: =IF(M19>=1,M19*P19,"") ->  | R19: =95+6 -> 101 | S19: =IF(M19>=1,M19*R19,"") -> 
B20: 066 | D20: 3068 F R/LHR 161 C WH | F20: 932 | G20: =IF(C20>=1,C20*F20,"") ->  | H20: =95+6 -> 101 | I20: =IF(C20>=1,C20*H20,"") ->  | L20: 7602 | N20: 3068 F R/LHR RPD C WH | P20: 984 | Q20: =IF(M20>=1,M20*P20,"") ->  | R20: 113 | S20: =IF(M20>=1,M20*R20,"") -> 
B21: 067 | D21: 3068 F L/RHR 161 C WH | F21: 932 | G21: =IF(C21>=1,C21*F21,"") ->  | H21: =95+6 -> 101 | I21: =IF(C21>=1,C21*H21,"") ->  | L21: 7603 | N21: 3068 F L/RHR RPD C WH | P21: 984 | Q21: =IF(M21>=1,M21*P21,"") ->  | R21: 113 | S21: =IF(M21>=1,M21*R21,"") -> 
A23: 3'6" WIDE, L-18, NON-GALV, HONEYCOMB, (WH) WARNOCK HERSEY | K23: 4'0" WIDE, L-18, NON-GALV, HONEYCOMB, (WH) WARNOCK HERSEY
B24: Part # | C24: Qty. | D24: Description | F24: List Each | G24: Total List | H24: Wgt. Each | I24: Total Wgt. | L24: Part # | M24: Qty. | N24: Description | P24: List Each | Q24: Total List | R24: Wgt. Each | S24: Total Wgt.
B25: 19618 | D25: 3668 F R/LHR 161 C WH | F25: 1112 | G25: =IF(C25>=1,C25*F25,"") ->  | H25: 106 | I25: =IF(C25>=1,C25*H25,"") ->  | L25: 19624 | N25: 4068 F R/LHR 161 C WH | P25: 1221 | Q25: =IF(M25>=1,M25*P25,"") ->  | R25: 120 | S25: =IF(M25>=1,M25*R25,"") -> 
B26: 19619 | D26: 3668 F L/RHR 161 C WH | F26: 1112 | H26: 106 | L26: 19625 | N26: 4068 F L/RHR 161 C WH | P26: 1221 | R26: 120
B27: 19620 | D27: 3668 F R/LHR 86ED C WH | F27: 1112 | H27: 106 | L27: 19626 | N27: 4068 F R/LHR 86ED C WH | P27: 1221 | R27: 120
B28: 19621 | D28: 3668 F L/RHR 86ED C WH | F28: 1112 | H28: 106 | L28: 19627 | N28: 4068 F L/RHR 86ED C WH | P28: 1221 | R28: 120
B29: 19622 | D29: 3668 F R/LHR RPD C WH | F29: 1164 | H29: 106 | L29: 19628 | N29: 4068 F R/LHR RPD C WH | P29: 1273 | R29: 120
B30: 19623 | D30: 3668 F L/RHR RPD C WH | F30: 1164 | H30: 106 | L30: 19629 | N30: 4068 F L/RHR RPD C WH | P30: 1273 | R30: 120
A32: 1. | B32: Stock uses Steelcraft hinge and lock locations
A33: 2. | B33: The nomenclature designation “C” indicates closer reinf.
A34: 3. | B34: The nominclature designation “WH” indicates 1-1/2 hour Mylar fire label.
A36: This is an official order - Please Sign: | N36: TOTAL WEIGHT | P36: TOTAL LIST $ | R36: TOTAL NET $
E37: Sheet | G37: of | K37: TOTALS (This page) | N37: =Wgt_658_7_68_ -> 0 | P37: =LIst_658_7_68_ -> 0 | R37: =(1-N5)*P37 -> 0
Q40: =SUM(C9:C30)+SUM(M9:M30) -> 0 | R40: =SUM(G9:G30)+SUM(Q9:Q30) -> 0 | S40: =SUM(I9:I30)+SUM(S9:S30) -> 0
L41: Cat.658-20-Rev. 0223 | O41: p.131

Sheet Cat.658-21-Rev. 0223
E1: SOLD TO: | H1: SHIP TO: | L1: CUST P.O. # | O1: SHIPPING INSTRUCTIONS | R1: (select on cover page)
A2: L-18 SERIES | E2: ='Cat.658 Rev. 0223-cover'!B17 -> 0 | H2: ='Cat.658 Rev. 0223-cover'!H17 -> 0 | L2: ='Cat.658 Rev. 0223-cover'!$O$5 -> 0 | Q2: =IF('Cat.658 Rev. 0223-cover'!N9,CHAR(82),"") ->  | R2: LTL
A3: 7'0" FLUSH DOORS | E3: ='Cat.658 Rev. 0223-cover'!B18 -> 0 | H3: ='Cat.658 Rev. 0223-cover'!H18 -> 0 | L3: ACCOUNT. # | O3: ='Cat.658 Rev. 0223-cover'!$B$25 -> 0 | Q3: =IF('Cat.658 Rev. 0223-cover'!N10,CHAR(82),"") ->  | R3: POOL TRUCK
E4: ='Cat.658 Rev. 0223-cover'!B19 -> 0 | H4: ='Cat.658 Rev. 0223-cover'!H19 -> 0 | L4: ='Cat.658 Rev. 0223-cover'!$O$4 -> 0 | Q4: =IF('Cat.658 Rev. 0223-cover'!N11,CHAR(82),"") ->  | R4: OTHER
E5: ='Cat.658 Rev. 0223-cover'!$B$20 -> 0 | H5: ='Cat.658 Rev. 0223-cover'!$H$20 -> 0 | L5: DISCOUNT % | N5: ='Cat.658 Rev. 0223-cover'!$O$6 -> 0
A7: 2'6" WIDE, L-18, NON-GALV, HONEYCOMB, (WH) WARNOCK HERSEY | K7: 2'8" WIDE, L-18, NON-GALV, HONEYCOMB, (WH) WARNOCK HERSEY
B8: Part # | C8: Qty. | D8: Description | F8: List Each | G8: Total List | H8: Wgt. Each | I8: Total Wgt. | L8: Part # | M8: Qty. | N8: Description | P8: List Each | Q8: Total List | R8: Wgt. Each | S8: Total Wgt.
B9: 19630 | D9: 2670 F R/LHR 161 C | F9: 957 | G9: =IF(C9>=1,C9*F9,"") ->  | H9: 83 | I9: =IF(C9>=1,C9*H9,"") ->  | L9: 19636 | N9: 2870 F R/LHR 161 C | P9: 957 | Q9: =IF(M9>=1,M9*P9,"") ->  | R9: 88 | S9: =IF(M9>=1,M9*R9,"") -> 
B10: 19631 | D10: 2670 F L/RHR 161 C | F10: 957 | H10: 83 | L10: 19637 | N10: 2870 F L/RHR 161 C | P10: 957 | R10: 88
B11: 19632 | D11: 2670 F R/LHR 86ED C | F11: 957 | H11: 83 | L11: 19638 | N11: 2870 F R/LHR 86ED C | P11: 957 | R11: 88
B12: 19633 | D12: 2670 F L/RHR 86ED C | F12: 957 | H12: 83 | L12: 19639 | N12: 2870 F L/RHR 86ED C | P12: 957 | R12: 88
B13: 19634 | D13: 2670 F R/LHR RPD C | F13: 1009 | H13: 83 | L13: 19640 | N13: 2870 F R/LHR RPD C | P13: 1009 | R13: 88
B14: 19635 | D14: 2670 F L/RHR RPD C | F14: 1009 | H14: 83 | L14: 19641 | N14: 2870 F L/RHR RPD C | P14: 1009 | R14: 88
A16: 3'0" WIDE, L-18, NON-GALV, HONEYCOMB, (WH) WARNOCK HERSEY | K16: GALVANNEALED, POLYSTYRENE CORE, (WH) WARNOCK HERSEY
B17: Part # | C17: Qty. | D17: Description | F17: List Each | G17: Total List | H17: Wgt. Each | I17: Total Wgt. | L17: Part # | M17: Qty. | N17: Description | P17: List Each | Q17: Total List | R17: Wgt. Each | S17: Total Wgt.
B18: 038 | D18: 3070 F R/LHR 61L C | F18: 963 | G18: =IF(C18>=1,C18*F18,"") ->  | H18: =97+6 -> 103 | I18: =IF(C18>=1,C18*H18,"") ->  | L18: L-18
B19: 039 | D19: 3070 F L/RHR 61L C | F19: 963 | H19: 103 | L19: 090 | N19: 3070 F R/LHR 161 C | P19: 1111 | Q19: =IF(M19>=1,M19*P19,"") ->  | R19: 87 | S19: =IF(M19>=1,M19*R19,"") -> 
B20: 068 | D20: 3070 F R/LHR 161 C | F20: 963 | H20: 103 | L20: 091 | N20: 3070 F L/RHR 161 C | P20: 1111 | R20: 87
B21: 069 | D21: 3070 F L/RHR 161 C | F21: 963 | H21: 103 | L21: 084 | N21: 3070 F R/LHR 86ED C | P21: 1111 | R21: 87
B22: 082 | D22: 3070 F R/LHR 86ED C | F22: 963 | H22: 103 | L22: 085 | N22: 3070 F L/RHR 86ED C | P22: 1111 | R22: 87
B23: 083 | D23: 3070 F L/RHR 86ED C | F23: 963 | H23: 103 | L23: 092 | N23: 3070 F R/LHR RPD C | P23: 1163 | R23: 97
B24: 088 | D24: 3070 F R/LHR RPD C | F24: 1015 | H24: 103 | L24: 093 | N24: 3070 F L/RHR RPD C | P24: 1163 | R24: 97
B25: 089 | D25: 3070 F L/RHR RPD C | F25: 1015 | H25: 103 | L25: L-18, DOWNSIZED for Continuous Hinge, 5/16" Undersized
B26: INACTIVE | L26: 19642 | N26: 3070 F R/LHR RPD C | P26: 1163 | Q26: =IF(M26>=1,M26*P26,"") ->  | R26: 96 | S26: =IF(M26>=1,M26*R26,"") -> 
B27: 7619 | D27: 3070 F R/LHR C ASA & FB | F27: 1061 | G27: =IF(C27>=1,C27*F27,"") ->  | H27: 103 | I27: =IF(C27>=1,C27*H27,"") ->  | L27: 19643 | N27: 3070 F L/RHR RPD C | P27: 1163 | Q27: =IF(M27>=1,M27*P27,"") ->  | R27: 96 | S27: =IF(M27>=1,M27*R27,"") -> 
B28: 7620 | D28: 3070 F L/RHR C ASA & FB | F28: 1061 | G28: =IF(C28>=1,C28*F28,"") ->  | H28: 103 | I28: =IF(C28>=1,C28*H28,"") -> 
B29: WIDE INACTIVE
B30: 19687 | D30: 3070 F R/LHR C ASA FB W/ TABS | F30: 1061 | G30: =IF(C30>=1,C30*F30,"") ->  | H30: 80 | I30: =IF(C30>=1,C30*H30,"") -> 
B31: 19688 | D31: 3070 F L/RHR C ASA FB W/ TABS | F31: 1061 | G31: =IF(C31>=1,C31*F31,"") ->  | H31: 80 | I31: =IF(C31>=1,C31*H31,"") -> 
A33: 3'6" WIDE, L-18, NON-GALV, HONEYCOMB, (WH) WARNOCK HERSEY | K33: 4'0" WIDE, L-18, NON-GALV, HONEYCOMB, (WH) WARNOCK HERSEY
B34: Part # | C34: Qty. | D34: Description | F34: List Each | G34: Total List | H34: Wgt. Each | I34: Total Wgt. | L34: Part # | M34: Qty. | N34: Description | P34: List Each | Q34: Total List | R34: Wgt. Each | S34: Total Wgt.
B35: 064 | D35: 3670 F R/LHR 161 C | F35: 1158 | G35: =IF(C35>=1,C35*F35,"") ->  | H35: 118 | I35: =IF(C35>=1,C35*H35,"") ->  | L35: 156 | N35: 4070 F R/LHR 161 C | P35: 1273 | Q35: =IF(M35>=1,M35*P35,"") ->  | R35: 133 | S35: =IF(M35>=1,M35*R35,"") -> 
B36: 065 | D36: 3670 F L/RHR 161 C | F36: 1158 | H36: 118 | L36: 157 | N36: 4070 F L/RHR 161 C | P36: 1273 | R36: 133
B37: 19672 | D37: 3670 F R/LHR 86ED C | F37: 1158 | H37: 111 | L37: 7630 | N37: 4070 F R/LHR 86ED C | P37: 1273 | R37: 133
B38: 19673 | D38: 3670 F L/RHR 86ED C | F38: 1158 | H38: 111 | L38: 7631 | N38: 4070 F L/RHR 86ED C | P38: 1273 | R38: 133
B39: 19670 | D39: 3670 F R/LHR RPD C | F39: 1210 | H39: 111 | L39: 19680 | N39: 4070 F R/LHR RPD C | P39: 1325 | R39: 125
B40: 19671 | D40: 3670 F L/RHR RPD C | F40: 1210 | H40: 111 | L40: 19681 | N40: 4070 F L/RHR RPD C | P40: 1325 | R40: 125
A42: 1. | B42: Stock uses Steelcraft hinge and lock locations | N42: TOTAL WEIGHT | P42: TOTAL LIST $ | R42: TOTAL NET $
A43: 2. | B43: The nomenclature designation “C” indicates closer reinf. | K43: TOTALS (This page) | N43: =Wgt_658_7_70_ -> 0 | P43: =List_658_7_70_ -> 0 | R43: =(1-N5)*P43 -> 0
A44: 3. | B44: The nominclature designation “WH” indicates 1-1/2 hour Mylar fire label.
A45: This is an official order - Please Sign:
E46: Sheet | G46: of | L46: Cat.658-21-Rev. 0223 | O46: p.131
Q47: =SUM(C9:C40)+SUM(M9:M40) -> 0 | R47: =SUM(G9:G40)+SUM(Q9:Q40) -> 0 | S47: =SUM(I9:I40)+SUM(S9:S40) -> 0

Sheet Cat.658-22-Rev. 0420
E1: SOLD TO: | H1: SHIP TO: | L1: CUST P.O. # | O1: SHIPPING INSTRUCTIONS | R1: (select on cover page)
A2: L-18 SERIES | E2: ='Cat.658 Rev. 0223-cover'!B17 -> 0 | H2: ='Cat.658 Rev. 0223-cover'!H17 -> 0 | L2: ='Cat.658 Rev. 0223-cover'!$O$5 -> 0 | Q2: =IF('Cat.658 Rev. 0223-cover'!N9,CHAR(82),"") ->  | R2: LTL
A3: 8'0" FLUSH DOORS | E3: ='Cat.658 Rev. 0223-cover'!B18 -> 0 | H3: ='Cat.658 Rev. 0223-cover'!H18 -> 0 | L3: ACCOUNT. # | O3: ='Cat.658 Rev. 0223-cover'!$B$25 -> 0 | Q3: =IF('Cat.658 Rev. 0223-cover'!N10,CHAR(82),"") ->  | R3: POOL TRUCK
C4: NON-GALV, HONEYCOMB | E4: ='Cat.658 Rev. 0223-cover'!B19 -> 0 | H4: ='Cat.658 Rev. 0223-cover'!H19 -> 0 | L4: ='Cat.658 Rev. 0223-cover'!$O$4 -> 0 | Q4: =IF('Cat.658 Rev. 0223-cover'!N11,CHAR(82),"") ->  | R4: OTHER
B5: NON-LABEL | E5: ='Cat.658 Rev. 0223-cover'!$B$20 -> 0 | H5: ='Cat.658 Rev. 0223-cover'!$H$20 -> 0 | L5: DISCOUNT % | N5: ='Cat.658 Rev. 0223-cover'!$O$6 -> 0
A7: 2'6" WIDE, NON-GALV, HONEYCOMB, NON-LABEL | K7: 2'8" WIDE, NON-GALV, HONEYCOMB, NON-LABEL
B8: Part # | C8: Qty. | D8: Description | F8: List Each | G8: Total List | H8: Wgt. Each | I8: Total Wgt. | L8: Part # | M8: Qty. | N8: Description | P8: List Each | Q8: Total List | R8: Wgt. Each | S8: Total Wgt.
B9: 19644 | D9: 2680 F R/LHR 161 C WH | F9: 1273 | G9: =IF(C9>=1,C9*F9,"") ->  | H9: 93 | I9: =IF(C9>=1,C9*H9,"") ->  | L9: 19650 | N9: 2880 F R/LHR 161 C WH | P9: 1273 | Q9: =IF(M9>=1,M9*P9,"") ->  | R9: 98 | S9: =IF(M9>=1,M9*R9,"") -> 
B10: 19645 | D10: 2680 F L/RHR 161 C WH | F10: 1273 | H10: 93 | L10: 19651 | N10: 2880 F L/RHR 161 C WH | P10: 1273 | R10: 98
B11: 19646 | D11: 2680 F R/LHR 86ED C WH | F11: 1273 | H11: 93 | L11: 19652 | N11: 2880 F R/LHR 86ED C WH | P11: 1273 | R11: 98
B12: 19647 | D12: 2680 F L/RHR 86ED C WH | F12: 1273 | H12: 93 | L12: 19653 | N12: 2880 F L/RHR 86ED C WH | P12: 1273 | R12: 98
B13: 19648 | D13: 2680 F R/LHR RPD C WH | F13: 1325 | H13: 93 | L13: 19654 | N13: 2880 F R/LHR RPD C WH | P13: 1325 | R13: 98
B14: 19649 | D14: 2680 F L/RHR RPD C WH | F14: 1325 | H14: 93 | L14: 19655 | N14: 2880 F L/RHR RPD C WH | P14: 1325 | R14: 98
A16: 3'0" WIDE, NON-GALV, HONEYCOMB, NON-LABEL
B17: Part # | C17: Qty. | D17: Description | F17: List Each | G17: Total List | H17: Wgt. Each | I17: Total Wgt.
B18: 19674 | D18: 3080 F R/LHR 161 C WH | F18: 1306 | G18: =IF(C18>=1,C18*F18,"") ->  | H18: 109 | I18: =IF(C18>=1,C18*H18,"") -> 
B19: 19675 | D19: 3080 F L/RHR 161 C WH | F19: 1306 | H19: 109
B20: 19676 | D20: 3080 F R/LHR 86ED C WH | F20: 1306 | H20: 109
B21: 19677 | D21: 3080 F L/RHR 86ED C WH | F21: 1306 | H21: 109
B22: 19678 | D22: 3080 F R/LHR RPD C WH | F22: 1358 | H22: 109
B23: 19679 | D23: 3080 F L/RHR RPD C WH | F23: 1358 | H23: 109
A25: 3'6" WIDE, NON-GALV, HONEYCOMB, NON-LABEL | K25: 4'0" WIDE, NON-GALV, HONEYCOMB, NON-LABEL
B26: Part # | C26: Qty. | D26: Description | F26: List Each | G26: Total List | H26: Wgt. Each | I26: Total Wgt. | L26: Part # | M26: Qty. | N26: Description | P26: List Each | Q26: Total List | R26: Wgt. Each | S26: Total Wgt.
B27: 19656 | D27: 3680 F R/LHR 161 C WH | F27: 1456 | G27: =IF(C27>=1,C27*F27,"") ->  | H27: 125 | I27: =IF(C27>=1,C27*H27,"") ->  | L27: 19662 | N27: 4080 F R/LHR 161 C WH | P27: 1568 | Q27: =IF(M27>=1,M27*P27,"") ->  | R27: 141 | S27: =IF(M27>=1,M27*R27,"") -> 
B28: 19657 | D28: 3680 F L/RHR 161 C WH | F28: 1456 | H28: 125 | L28: 19663 | N28: 4080 F L/RHR 161 C WH | P28: 1568 | R28: 141
B29: 19658 | D29: 3680 F R/LHR 86ED C WH | F29: 1456 | H29: 125 | L29: 19664 | N29: 4080 F R/LHR 86ED C WH | P29: 1568 | R29: 141
B30: 19659 | D30: 3680 F L/RHR 86ED C WH | F30: 1456 | H30: 125 | L30: 19665 | N30: 4080 F L/RHR 86ED C WH | P30: 1568 | R30: 141
B31: 19660 | D31: 3680 F R/LHR RPD C WH | F31: 1508 | H31: 125 | L31: 19666 | N31: 4080 F R/LHR RPD C WH | P31: 1620 | R31: 141
B32: 19661 | D32: 3680 F L/RHR RPD C WH | F32: 1508 | H32: 125 | L32: 19667 | N32: 4080 F L/RHR RPD C WH | P32: 1620 | R32: 141
A34: 1. | B34: Stock uses Steelcraft hinge and lock locations
A35: 2. | B35: The nomenclature designation “C” indicates closer reinf.
A36: 3. | B36: The nominclature designation “WH” indicates 1-1/2 hour Mylar fire label.
A37: 4. | B37: 8'0" stock doors are not available with WH mylar labels. Labels may be added through Door Mods. | N37: TOTAL WEIGHT | P37: TOTAL LIST $ | R37: TOTAL NET $
K38: TOTALS (This page) | N38: =Wgt_658_7_80_ -> 0 | P38: =List_658_7_80_ -> 0 | R38: =(1-N5)*P38 -> 0
A40: This is an official order - Please Sign:
E41: Sheet | G41: of | L41: Cat.658-22-Rev. 0223 | O41: p.131
Q42: =SUM(C9:C32)+SUM(M9:M32) -> 0 | R42: =SUM(G9:G32)+SUM(Q9:Q32) -> 0 | S42: =SUM(I9:I32)+SUM(S9:S32) -> 0

Sheet Cat.658-23-Rev. 0223
E1: SOLD TO: | H1: SHIP TO: | L1: CUST P.O. # | O1: SHIPPING INSTRUCTIONS | R1: (select on cover page)
A2: L-16 SERIES | E2: ='Cat.658 Rev. 0223-cover'!B17 -> 0 | H2: ='Cat.658 Rev. 0223-cover'!H17 -> 0 | L2: ='Cat.658 Rev. 0223-cover'!$O$5 -> 0 | Q2: =IF('Cat.658 Rev. 0223-cover'!N9,CHAR(82),"") ->  | R2: LTL
A3: 7' and 8' FLUSH DOORS | E3: ='Cat.658 Rev. 0223-cover'!B18 -> 0 | H3: ='Cat.658 Rev. 0223-cover'!H18 -> 0 | L3: ACCOUNT. # | O3: ='Cat.658 Rev. 0223-cover'!$B$25 -> 0 | Q3: =IF('Cat.658 Rev. 0223-cover'!N10,CHAR(82),"") ->  | R3: POOL TRUCK
C4: GALV / POLYSTYRENE | E4: ='Cat.658 Rev. 0223-cover'!B19 -> 0 | H4: ='Cat.658 Rev. 0223-cover'!H19 -> 0 | L4: ='Cat.658 Rev. 0223-cover'!$O$4 -> 0 | Q4: =IF('Cat.658 Rev. 0223-cover'!N11,CHAR(82),"") ->  | R4: OTHER
E5: ='Cat.658 Rev. 0223-cover'!$B$20 -> 0 | H5: ='Cat.658 Rev. 0223-cover'!$H$20 -> 0 | L5: DISCOUNT % | N5: ='Cat.658 Rev. 0223-cover'!$O$6 -> 0
A7: 3'0" x 7'0" GALVANNEALED, POLYSTYRENE, WH MYLAR LABEL | K7: 3'0" x 8'0" GALVANNEALED, POLYSTYRENE, *NON-LABEL
B8: Part # | C8: Qty. | D8: Description | F8: List Each | G8: Total List | H8: Wgt. Each | I8: Total Wgt. | L8: Part # | M8: Qty. | N8: Description | P8: List Each | Q8: Total List | R8: Wgt. Each | S8: Total Wgt.
B9: 19335 | D9: 3070 F R/LHR 161 C | F9: 1294 | G9: =IF(C9>=1,C9*F9,"") ->  | H9: 117 | I9: =IF(C9>=1,C9*H9,"") ->  | L9: 19697 | N9: 3080 F R/LHR 161 C | P9: 1665 | Q9: =IF(M9>=1,M9*P9,"") ->  | R9: 123 | S9: =IF(M9>=1,M9*R9,"") -> 
B10: 19336 | D10: 3070 F L/RHR 161 C | F10: 1294 | G10: =IF(C10>=1,C10*F10,"") ->  | H10: 117 | I10: =IF(C10>=1,C10*H10,"") ->  | L10: 19698 | N10: 3080 F L/RHR 161 C | P10: 1665 | Q10: =IF(M10>=1,M10*P10,"") ->  | R10: 123 | S10: =IF(M10>=1,M10*R10,"") -> 
B11: 19668 | D11: 3070 F R/LHR RPD C | F11: 1346 | G11: =IF(C11>=1,C11*F11,"") ->  | H11: 118 | I11: =IF(C11>=1,C11*H11,"") ->  | L11: 19699 | N11: 3080 F R/LHR RPD C | P11: 1717 | Q11: =IF(M11>=1,M11*P11,"") ->  | R11: 124 | S11: =IF(M11>=1,M11*R11,"") -> 
B12: 19669 | D12: 3070 F L/RHR RPD C | F12: 1346 | G12: =IF(C12>=1,C12*F12,"") ->  | H12: 118 | I12: =IF(C12>=1,C12*H12,"") ->  | L12: 19780 | N12: 3080 F L/RHR RPD C | P12: 1717 | Q12: =IF(M12>=1,M12*P12,"") ->  | R12: 124 | S12: =IF(M12>=1,M12*R12,"") -> 
A14: 3'6" x 7'0" GALVANNEALED, POLYSTYRENE, WH MYLAR LABEL
B15: Part # | C15: Qty. | D15: Description | F15: List Each | G15: Total List | H15: Wgt. Each | I15: Total Wgt.
B16: 19689 | D16: 3670 F R/LHR 161 C | F16: 1505 | G16: =IF(C16>=1,C16*F16,"") ->  | H16: 125 | I16: =IF(C16>=1,C16*H16,"") -> 
B17: 19690 | D17: 3670 F L/RHR 161 C | F17: 1505 | G17: =IF(C17>=1,C17*F17,"") ->  | H17: 125 | I17: =IF(C17>=1,C17*H17,"") -> 
B18: 19691 | D18: 3670 F R/LHR RPD C | F18: 1557 | G18: =IF(C18>=1,C18*F18,"") ->  | H18: 126 | I18: =IF(C18>=1,C18*H18,"") -> 
B19: 19692 | D19: 3670 F L/RHR RPD C | F19: 1557 | G19: =IF(C19>=1,C19*F19,"") ->  | H19: 126 | I19: =IF(C19>=1,C19*H19,"") -> 
A21: 4'0" x 7'0" GALVANNEALED, POLYSTYRENE, WH MYLAR LABEL
B22: Part # | C22: Qty. | D22: Description | F22: List Each | G22: Total List | H22: Wgt. Each | I22: Total Wgt.
B23: 19693 | D23: 4070 F R/LHR 161 C | F23: 1608 | G23: =IF(C23>=1,C23*F23,"") ->  | H23: 147 | I23: =IF(C23>=1,C23*H23,"") -> 
B24: 19694 | D24: 4070 F R/LHR 161 C | F24: 1608 | G24: =IF(C24>=1,C24*F24,"") ->  | H24: 147 | I24: =IF(C24>=1,C24*H24,"") -> 
B25: 19695 | D25: 4070 F L/RHR RPD C | F25: 1660 | G25: =IF(C25>=1,C25*F25,"") ->  | H25: 148 | I25: =IF(C25>=1,C25*H25,"") -> 
B26: 19696 | D26: 4070 F L/RHR RPD C | F26: 1660 | G26: =IF(C26>=1,C26*F26,"") ->  | H26: 148 | I26: =IF(C26>=1,C26*H26,"") -> 
A37: 1. | B37: Stock uses Steelcraft hinge and lock locations
A38: 2. | B38: The nomenclature designation “C” indicates closer reinf.
A39: 3. | B39: The nominclature designation “WH” indicates 1-1/2 hour Mylar fire label.
A40: 4. | B40: *8'0" stock doors are not available with WH mylar labels. Labels may be added through Door Mods.
A42: This is an official order - Please Sign: | N42: TOTAL WEIGHT | P42: TOTAL LIST $ | R42: TOTAL NET $
E43: Sheet | G43: of | K43: TOTALS (This page) | N43: =Wgt_658_7_70_ -> 0 | P43: =List_658_7_70_ -> 0 | R43: =(1-N5)*P43 -> 0
L46: Cat.658-23-Rev. 0223 | O46: p.132
Q47: =SUM(C9:C40)+SUM(M9:M40) -> 0 | R47: =SUM(G9:G40)+SUM(Q9:Q40) -> 0 | S47: =SUM(I9:I40)+SUM(S9:S40) -> 0

Sheet Cat.658-30-Rev. 0223
E1: SOLD TO: | H1: SHIP TO: | L1: CUST P.O. # | O1: SHIPPING INSTRUCTIONS | R1: (select on cover page)
A2: SZ18 - SERIES | E2: ='Cat.658 Rev. 0223-cover'!B17 -> 0 | H2: ='Cat.658 Rev. 0223-cover'!H17 -> 0 | L2: ='Cat.658 Rev. 0223-cover'!$O$5 -> 0 | Q2: =IF('Cat.658 Rev. 0223-cover'!N9,CHAR(82),"") ->  | R2: LTL
A3: FLUSH DOORS | E3: ='Cat.658 Rev. 0223-cover'!B18 -> 0 | H3: ='Cat.658 Rev. 0223-cover'!H18 -> 0 | L3: ACCOUNT. # | O3: ='Cat.658 Rev. 0223-cover'!$B$25 -> 0 | Q3: =IF('Cat.658 Rev. 0223-cover'!N10,CHAR(82),"") ->  | R3: POOL TRUCK
A4: SQUARE EDGE | E4: ='Cat.658 Rev. 0223-cover'!B19 -> 0 | H4: ='Cat.658 Rev. 0223-cover'!H19 -> 0 | L4: ='Cat.658 Rev. 0223-cover'!$O$4 -> 0 | Q4: =IF('Cat.658 Rev. 0223-cover'!N11,CHAR(82),"") ->  | R4: OTHER
E5: ='Cat.658 Rev. 0223-cover'!$B$20 -> 0 | H5: ='Cat.658 Rev. 0223-cover'!$H$20 -> 0 | L5: DISCOUNT % | N5: ='Cat.658 Rev. 0223-cover'!$O$6 -> 0
E8: SZ18 FLUSH - SQUARE EDGE, NON-Handed, HONEYCOMB CORE 6' 8" HIGH
A9: GALV, POLYSYRENE (closed top) | K9: NON-GALV
A10: Qty. | B10: Part # | C10: Description | F10: Weight | G10: Unit List | H10: 20 Pak Unit List | I10: Ext. List | K10: Qty. | L10: Part # | M10: Description | P10: Weight | Q10: Unit List | R10: 20 Pak Unit List | S10: Ext. List
B11: SZ002 | C11: 3068 F R/L RPD C WH | F11: 92 | G11: 673 | H11: 639.35 | I11: =((A11-(INT(A11/20)*20))*G11)+((INT(A11/20)*20)*H11) -> 0 | L11: SZ006 | M11: 3068 F R/L RPD C WH | Q11: 590 | R11: 560.7 | S11: =((K11-(INT(K11/20)*20))*Q11)+((INT(K11/20)*20)*R11) -> 0
B12: SZ003 | C12: 3068 F R/L 86ED C WH | F12: 92 | G12: 621 | H12: 589.95 | I12: =((A12-(INT(A12/20)*20))*G12)+((INT(A12/20)*20)*H12) -> 0 | L12: SZ007 | M12: 3068 F R/L 86ED C WH | Q12: 538 | R12: 511.3 | S12: =((K12-(INT(K12/20)*20))*Q12)+((INT(K12/20)*20)*R12) -> 0
B13: SZ004 | C13: 3068 F R/L 161 C WH | F13: 92 | G13: 621 | H13: 589.95 | I13: 0 | L13: SZ008 | M13: 3068 F R/L 161 C WH | Q13: 538 | R13: 511.3 | S13: 0
E15: SZ18 FLUSH - SQUARE EDGE, NON-Handed, HONEYCOMB CORE 7' 0" HIGH
A16: GALV, POLYSYRENE (closed top) | K16: NON-GALV
A17: Qty. | B17: Part # | C17: Description | F17: Weight | G17: Unit List | H17: 20 Pak Unit List | I17: Ext. List | K17: Qty. | L17: Part # | M17: Description | P17: Weight | Q17: Unit List | R17: 20 Pak Unit List | S17: Ext. List
B18: SZ010 | C18: 3070 F R/L 61L C WH | F18: 95 | G18: 659 | H18: 626.05 | I18: =((A18-(INT(A18/20)*20))*G18)+((INT(A18/20)*20)*H18) -> 0 | L18: SZ015 | M18: 3070 F R/L RPD C WH | Q18: 642 | R18: 609.9 | S18: =((K18-(INT(K18/20)*20))*Q18)+((INT(K18/20)*20)*R18) -> 0
B19: SZ011 | C19: 3070 F R/L RPD C WH | F19: 95 | G19: 711 | H19: 675.45 | I19: =((A19-(INT(A19/20)*20))*G19)+((INT(A19/20)*20)*H19) -> 0 | L19: SZ016 | M19: 3070 F R/L 86ED C WH | Q19: 590 | R19: 560.5 | S19: =((K19-(INT(K19/20)*20))*Q19)+((INT(K19/20)*20)*R19) -> 0
B20: SZ012 | C20: 3070 F R/L 86ED C WH | F20: 95 | G20: 659 | H20: 626.05 | I20: 0 | L20: SZ017 | M20: 3070 F R/L 161 C WH | Q20: 590 | R20: 560.5 | S20: 0
B21: SZ013 | C21: 3070 F R/L 161 C WH | F21: 95 | G21: 659 | H21: 626.05 | I21: 0
A24: Standard items INCLUDED with Flush Doors
A25: 1 | B25: The nomenclature designation “C” indicates closer reinf.
A26: 2 | B26: The nominclature designation “WH” indicates 1-1/2 hour Mylar fire label.
A27: 3 | B27: Stock uses Steelcraft hinge and lock locations.
A28: 4 | B28: Only the Poly/Galv doors, noted above, have a closed top as standard.
A31: This is an official order - Please Sign: | N31: TOTAL WEIGHT | P31: TOTAL LIST $ | R31: TOTAL NET $
E32: Sheet | G32: of | K32: TOTALS (This page) | N32: =Wgt_658_9_ -> 0 | P32: =List_658_9_ -> 0 | R32: =(1-N5)*P32 -> 0
L35: Cat.658-30-Rev. 0223 | O35: p.132
A36: 20 | B36: 40 | C36: =B36+20 -> 60 | D36: 80 | E36: 100 | F36: 120 | G36: 140 | H36: 160 | I36: 180 | J36: 200 | K36: 220 | Q36: =SUM(A11:A21)+SUM(K11:K20) -> 0 | R36: =SUM(I10:I21)+SUM(S10:S20) -> 0 | S36: =SUMPRODUCT(K11:K20,P11:P20)+SUMPRODUCT(A11:A21,F11:F21) -> 0
